Cogmind - Beta 17 @@@ ROGUE MODE // 2026.06.27 @ 22:45:47 Player: OBLIQUE Result: Destroyed by P-80 Master with Gamma Rifle Performance ------------- Evolutions (7) 3500 Regions Visited (11) 2200 Robots Destroyed (57) 285 Value Destroyed (2762) 2762 Prototype IDs (41) 820 Alien Tech Used (2) 400 Bonus (1042) 1042 TOTAL SCORE: 11009 Bonus ------- High Alert Combat Kills 111 Follower Combat Kills 131 Registered with UFD 300 Met Optimus in HQ 500 Cogmind --------- Core Integrity 0/1300 Matter 74/300 Energy 149/150 System Corruption 6% Temperature Cool (3) Movement Hovering (110) Ox1 Location -3/Quarantine Parts ------- > --- POWER (3) -------- Micro Fission Core (fused) > --- PROPULSION (4) --- Gravmag Array > --- UTILITY (9) ------ Advanced Cooling System Advanced Coolant Injector Advanced Terrain Scan Processor Advanced Target Analyzer Experimental Weapon Cycler (fused) Experimental Weapon Cycler (fused) Reaction Control System Self-contained Transmogrifier > --- WEAPON (5) ------- Compact HERF Cannon Light Antimatter Cannon Improved Remote Datajack Dual-blade Saw (fused) > --- INVENTORY (5) ---- Gravmag Array Antigrav Array Large Storage Unit Peak State ------------ > --- POWER ------------ Light Antimatter Reactor Matter Drive > --- PROPULSION ------- Gravmag Array Antigrav System Antigrav System > --- UTILITY ---------- Advanced Cooling System Advanced Coolant Injector Advanced Terrain Scan Processor Advanced Target Analyzer Reaction Control System Phase Armor Advanced Thermal Shield Self-contained Transmogrifier > --- WEAPON ----------- Heavy Disruptor Cannon Compact HERF Cannon Improved Remote Datajack Improved Remote Datajack > --- INVENTORY -------- Gravmag Array Antigrav Array Large Storage Unit [Rating: 150] Favorites ----------- Power Hybrid Deuterium Engine Engine Hybrid Deuterium Engine Power Core Light Fission Core Reactor Compact Particle Reactor Propulsion Armored Huge Wheel Treads Light Treads Wheel Armored Huge Wheel Hover Unit Cooled Aerolev Unit Flight Unit VTOL Module Utility Self-contained Transmogrifier Device Self-contained Transmogrifier Storage Small Storage Unit Processor Enhanced Optical Array Hackware Experimental Hacking Suite Protection Layered Light Armor Plating Artifact Phase Armor Weapon Proton Cannon Energy Gun Heavy Beamcaster Energy Cannon Proton Cannon Ballistic Gun Subdweller Machine Gun Ballistic Cannon Enhanced Hardcell Cannon Special Weapon Improved Remote Datajack Slashing Weapon Dual-blade Saw Build | -11 -10 -10 -7 -5 -5 -5 -4 -4 -4 -3 -3 ------- Run | Yrd Mat Sub Scr Fac Was Fac Fac Upp Upp Res Qua Slots Evolved 14 | . . . . 10 . . 2 . . 2 . Power 2 | . . . . 2 . . . . . . . Propulsion 2 | . . . . 2 . . . . . . . Utility 7 | . . . . 3 . . 2 . . 2 . Weapon 3 | . . . . 3 . . . . . . . Parts Attached 92 | 6 4 5 2 16 1 21 10 4 1 6 16 Power 12 | 1 . . 1 4 1 2 . 1 . . 2 Engine 5 | 1 . . 1 2 . . . 1 . . . Core 4 | . . . . 2 . 2 . . . . . Reactor 3 | . . . . . 1 . . . . . 2 Propulsion 13 | 2 2 . 1 1 . 4 1 . . . 2 Treads 2 | 2 . . . . . . . . . . . Leg . | . . . . . . . . . . . . Wheel 4 | . . . . 1 . 2 1 . . . . Hover 7 | . 2 . 1 . . 2 . . . . 2 Flight . | . . . . . . . . . . . . Utility 36 | 1 1 3 . 7 . 6 5 2 . 4 7 Device 21 | . 1 2 . 4 . 3 4 . . 3 4 Storage 2 | 1 . . . . . . . . . . 1 Processor 6 | . . . . 1 . 2 . 1 . 1 1 Hackware 2 | . . . . 1 . . 1 . . . . Protection 4 | . . 1 . 1 . 1 . 1 . . . Artifact 1 | . . . . . . . . . . . 1 Weapon 31 | 2 1 2 . 4 . 9 4 1 1 2 5 Energy Gun 4 | . . . . 1 . 1 1 . 1 . . Energy Cannon 14 | . 1 1 . 1 . 8 . . . 1 2 Ballistic Gun 4 | 2 . 1 . . . . . . . 1 . Ballistic Cannon 7 | . . . . 2 . . 3 1 . . 1 Launcher . | . . . . . . . . . . . . Special Weapon 2 | . . . . . . . . . . . 2 Impact Weapon . | . . . . . . . . . . . . Slashing Weapon . | . . . . . . . . . . . . Piercing Weapon . | . . . . . . . . . . . . Special Melee Weapon . | . . . . . . . . . . . . Unidentified Prototypes 12 | . 1 1 . 2 1 2 . 1 . 1 3 Parts Lost 38 | . . . . 2 . 8 . 7 10 7 4 Power 5 | . . . . 1 . 1 . 2 1 . . Propulsion 4 | . . . . . . . . 1 1 . 2 Utility 15 | . . . . 1 . 3 . 1 4 5 1 Weapon 14 | . . . . . . 4 . 3 4 2 1 Highest Loss Streak 10 | . . . . 2 . 3 . 7 10 4 4 To Critical Strikes 1 | . . . . . . . . . . 1 . Average Backups 3 | . 7 3 3 4 5 4 3 4 5 2 3 Power . | . . . . . . . . . . . . Propulsion . | . 3 2 . . . . . . . . 1 Utility 1 | . . . 1 2 3 1 2 3 5 2 1 Weapon . | . 2 1 . 1 2 1 . . . . . Tool/Special . | . . . . . . . . . . . . Unused Backups 33 | . . 5 12 10 . 4 . . . . 2 Power 2 | . . . 1 1 . . . . . . . Propulsion 6 | . . 2 1 1 . . . . . . 2 Utility 14 | . . 1 6 5 . 2 . . . . . Weapon 11 | . . 2 4 3 . 2 . . . . . Tool/Special . | . . . . . . . . . . . . Average Slot Usage (%) 80 | . 85 82 96 79 85 83 77 68 21 14 63 Engine 8 | . 14 13 13 9 11 6 5 5 . . . Core 1 | . . . . 1 . 3 7 1 . . 1 Reactor 1 | . . . . . 4 3 . . . . 5 Treads 2 | . 1 24 . . . . 4 . . . . Wheel 4 | . . 1 4 4 5 8 7 6 . . . Hover 9 | . 25 1 17 11 11 5 . . . . 11 Flight 1 | . . . 5 . . . . . . . . Device 15 | . 12 5 20 17 11 14 15 11 11 13 17 Processor 3 | . . . 3 2 5 4 10 2 . . 7 Protection 5 | . . 10 4 3 5 7 3 14 3 . . Energy Gun 5 | . . . 16 1 . . . 1 . . . Energy Cannon 5 | . 13 13 . . . 14 2 . . . 7 Ballistic Gun 1 | . 2 10 1 . . . . . . . . Ballistic Cannon 8 | . . . 6 20 20 9 13 15 1 . . Peak Build Rating 150 | 6 13 30 48 100 102 104 96 100 72 29 150 Average Rating 58 | 4 11 15 37 88 100 92 85 76 28 20 113 On Entrance 48 | . 6 12 30 48 100 97 81 91 72 21 18 Avg Prop Armor Cover (%) 4 | . . 13 3 2 2 2 11 . . . 20 Naked Turns . | . . . . . . . . . . . . Heaviest Build 110 | 10 15 29 38 85 85 89 70 77 48 18 110 Greatest Support 65 | 40 40 40 28 28 28 56 65 56 28 3 42 Greatest Overweight (x) 5 | . 1 . 2 3 3 3 2 1 4 5 3 Average Overweight (x) 1 | . . . 1 2 2 1 1 1 1 . . Largest Inventory Capacity 15 | 8 8 8 5 5 5 5 5 5 5 5 15 Average Capacity 5 | 6 8 5 5 5 5 5 5 5 5 5 5 Most Carried 8 | 2 8 8 5 5 5 5 5 5 5 5 5 Average Carried 4 | . 7 4 3 4 5 4 4 4 5 2 4 Final Capacity 8 | 8 8 5 5 5 5 5 5 5 5 5 5 Final Carried 8 | 1 8 5 5 5 5 5 5 5 5 4 5 Transmogrified Parts 66 | . . 2 26 5 . 9 5 5 5 . 9 Integrity Recovered 1114 | . . . 20 121 . 278 381 78 84 . 152 Class Distribution -------------------- 50% | Mutant 31% | Tank 10% | Gunner 3% | Derelict-Tank Dominant Class ---------------- Mutant | -10/Materials Mutant | -10/Subcaves Mutant | -7/Scraptown Tank | -5/Factory Tank | -5/Waste Tank | -5/Factory Gunner | -4/Factory Derelict-Tank | -4/Upper Caves Mutant | -4/Upper Caves Mutant | -3/Research Tank | -3/Quarantine Resources | -11 -10 -10 -7 -5 -5 -5 -4 -4 -4 -3 -3 ----------- Run | Yrd Mat Sub Scr Fac Was Fac Fac Upp Upp Res Qua Matter Collected 2695 | 183 . 209 40 521 . 1113 . 406 223 . . Remotely 420 | . . . . . . 420 . . . . . Salvage Created 2113 | . . 134 . 389 . 1283 38 145 124 . . Parts 101 | . . 9 . 16 . 65 1 7 3 . . Haulers Intercepted 2 | . . . . . . 2 . . . . . Recyclers Shooed 4 | . . . . . . 4 . . . . . Parts Field Recycled . | . . . . . . . . . . . . Retrieved Matter . | . . . . . . . . . . . . Parts Self-Destructed 28 | . . 17 . . . . . 5 6 . . Prevented 2 | . . . . . . . . 2 . . . Parts Restored . | . . . . . . . . . . . . Kills | -11 -10 -10 -7 -5 -5 -5 -4 -4 -4 -3 -3 ------- Run | Yrd Mat Sub Scr Fac Was Fac Fac Upp Upp Res Qua Combat Hostiles Destroyed 46 | . . 3 . 11 . 25 . 4 3 . . Guns 2 | . . . . . . . . 2 . . . Cannons 39 | . . 3 . 11 . 20 . 2 3 . . AOE 4 | . . . . . . 4 . . . . . Classes Destroyed 13 | . . 1 . 5 . 6 . . 1 . . Worker 2 | . . . . . . 2 . . . . . Builder 2 | . . . . . . 2 . . . . . Tunneler 2 | . . . . . . 2 . . . . . Hauler 2 | . . . . . . 2 . . . . . Watcher 3 | . . . . . . 2 1 . . . . Swarmer 14 | . . . . 4 . 9 . . 1 . . Grunt 4 | . . . . 1 . 2 . . 1 . . Brawler 4 | . . . . 1 . 3 . . . . . Duelist 1 | . . . . . . . . . 1 . . Sentry 5 | . . . . 3 . 2 . . . . . Hunter 6 | . . . . . . 2 . 4 . . . Programmer 9 | . . . . 2 . 7 . . . . . Subdweller 3 | . . 3 . . . . . . . . . Best Kill Streak 7 | . . 2 . 4 . 7 1 2 2 . . Combat Bots Only 6 | . . 2 . 4 . 6 . 2 2 . . Max Kills in Single Turn 5 | . . 1 . 1 . 5 1 1 1 . . Gunslinging . | . . . . . . . . . . . . Exploded 2 | . . . . . . 2 . . . . . Melee . | . . . . . . . . . . . . Uniques/NPCs Destroyed . | . . . . . . . . . . . . Combat | -11 -10 -10 -7 -5 -5 -5 -4 -4 -4 -3 -3 -------- Run | Yrd Mat Sub Scr Fac Was Fac Fac Upp Upp Res Qua Hostile Shots Fired 728 | . . 21 . 36 1 179 2 132 62 97 198 Missed 225 | . . 7 . 10 . 44 . 40 15 32 77 Hits 503 | . . 14 . 26 1 135 2 92 47 65 121 Melee 16 | . . . . 1 1 2 . . 12 . . Projectile 487 | . . 14 . 25 . 133 2 92 35 65 121 Critical Strikes 23 | . . 1 . 3 . 6 . 1 7 1 4 Actively Blocked 4 | . . . . . . 1 . . 3 . . Damage Taken 10409 | . . 311 . 801 42 2648 42 1349 1467 1636 2113 Core 2527 | . . 17 . 158 . 271 . 80 683 1130 188 Absorbed by Shields 79 | . . . . . . 79 . . . . . Redirected to Shielding 225 | . . . . . . 161 . 3 61 . . Ignored by Resistances 483 | . . . . . . . . 133 13 . 337 Core Remaining (%) 70 | 100 . . 93 . . 57 . . 33 . . Volleys Fired 182 | . . 15 . 34 . 68 2 25 26 9 3 Largest 5 | . . 2 . 4 . 4 2 5 3 1 2 Hottest 299 | . . 98 . 210 . 299 139 255 132 88 204 Shots Fired 376 | . . 26 . 77 . 173 4 53 30 9 4 Gun 42 | . . 11 . 8 . . . 13 2 8 . Cannon 334 | . . 15 . 69 . 173 4 40 28 1 4 Launcher . | . . . . . . . . . . . . Special . | . . . . . . . . . . . . Kinetic 226 | . . 11 . 69 . 73 2 40 23 8 . Thermal 22 | . . 15 . . . . . . 7 . . Explosive . | . . . . . . . . . . . . Electromagnetic 128 | . . . . 8 . 100 2 13 . 1 4 Robot Hit Streak 10 | . . 8 . 6 . 10 2 4 8 5 . Robot Miss Streak 6 | . . 4 . 6 . 5 4 5 2 1 . Penetration Max . | . . . . . . . . . . . . Secondary Targets . | . . . . . . . . . . . . Shots Hit Robots 210 | . . 13 . 40 . 96 2 30 22 7 . Core Hits 96 | . . 6 . 20 . 49 2 11 6 2 . Critical Kills . | . . . . . . . . . . . . Critical Parts Destroyed . | . . . . . . . . . . . . Critical Strikes 13 | . . . . 6 . 5 . 1 1 . . Blast 13 | . . . . 6 . 5 . 1 1 . . Melee Attacks . | . . . . . . . . . . . . Impact . | . . . . . . . . . . . . Slashing . | . . . . . . . . . . . . Piercing . | . . . . . . . . . . . . Sneak Attacks . | . . . . . . . . . . . . Combat Hostiles . | . . . . . . . . . . . . Follow-up Attacks . | . . . . . . . . . . . . Damage Inflicted 8625 | . . 272 . 1682 . 4953 101 714 742 161 . Guns 517 | . . 87 . 59 . . . 185 32 154 . Cannons 7149 | . . 185 . 1623 . 4045 101 529 659 7 . Explosions 959 | . . . . . . 908 . . 51 . . Melee . | . . . . . . . . . . . . Ramming . | . . . . . . . . . . . . Kinetic 5309 | . . 87 . 1623 . 2411 39 529 466 154 . Thermal 1197 | . . 185 . . . 736 . . 276 . . Explosive 137 | . . . . . . 137 . . . . . Electromagnetic 1982 | . . . . 59 . 1669 62 185 . 7 . Impact . | . . . . . . . . . . . . Slashing . | . . . . . . . . . . . . Piercing . | . . . . . . . . . . . . Highest Corruption 29 | . . . . 1 13 29 . . 13 1 5 Average Corruption 12 | . . . . 1 7 16 . . 12 1 1 Corruption Purged . | . . . . . . . . . . . . Corruption Blocked . | . . . . . . . . . . . . Effects 114 | . . . . 1 2 89 . . 15 . 7 Message Errors 16 | . . . . 1 . 11 . . 3 . 1 Matter Fused 36 | . . . . . 1 27 . . 5 . 3 Heat Flow Errors 10 | . . . . . . 6 . . 3 . 1 Energy Discharges 15 | . . . . . 1 12 . . 2 . . Parts Fused 3 | . . . . . . 3 . . . . . Data Loss (minor) 15 | . . . . . . 13 . . . . 2 Data Loss (major) 4 | . . . . . . 3 . . 1 . . Misfires 5 | . . . . . . 5 . . . . . Alerts 1 | . . . . . . 1 . . . . . Misdirections 5 | . . . . . . 4 . . 1 . . Weapon Failures 4 | . . . . . . 4 . . . . . Overload Shots . | . . . . . . . . . . . . Overflow Damage 477 | . . . . 95 . 381 . 1 . . . Projectiles 367 | . . . . 95 . 271 . 1 . . . Explosions 110 | . . . . . . 110 . . . . . Melee . | . . . . . . . . . . . . Knockbacks 22 | . . . . 3 . 8 1 7 3 . . Impact . | . . . . . . . . . . . . Kinetic 21 | . . . . 2 . 8 1 7 3 . . Secondary 1 | . . . . 1 . . . . . . . Self-Inflicted Damage 154 | . . . . . . 106 . . 48 . . Shots 3 | . . . . . . 2 . . 1 . . Rammed . | . . . . . . . . . . . . Targets Rammed . | . . . . . . . . . . . . Kicked . | . . . . . . . . . . . . Crushed . | . . . . . . . . . . . . Highest Temperature 519 | . . 1 . 270 . 519 . 501 253 . 24 Average Temperature 136 | . . 1 . 71 . 144 . 195 72 . 24 Received Heat Transfer 969 | . . 27 . 18 . 279 9 . 141 153 342 Effects 18 | . . . . . . 9 . 9 . . . Shutdowns 4 | . . . . . . 1 . 3 . . . Energy Bleed 7 | . . . . . . 4 . 3 . . . Interference 6 | . . . . . . 4 . 2 . . . Short Circuit 1 | . . . . . . . . 1 . . . Siege Activations . | . . . . . . . . . . . . Martial Activations . | . . . . . . . . . . . . Shielding Activations . | . . . . . . . . . . . . Robots Disrupted . | . . . . . . . . . . . . Combat Hostiles . | . . . . . . . . . . . . Robots Corrupted 1 | . . . . . . 1 . . . . . Combat Hostiles 1 | . . . . . . 1 . . . . . Parts Fried 7 | . . . . . . 6 1 . . . . Impact Corruptions 1 | . . . . 1 . . . . . . . Robots Melted . | . . . . . . . . . . . . Combat Hostiles . | . . . . . . . . . . . . Parts Melted . | . . . . . . . . . . . . Heat Transferred 1057 | . . 333 . . . 600 . . 124 . . Parts Sabotaged . | . . . . . . . . . . . . Parts Stolen . | . . . . . . . . . . . . Parts Stripped . | . . . . . . . . . . . . Power Chain Reactions 3 | . . . . . . 2 . . 1 . . Alert | -11 -10 -10 -7 -5 -5 -5 -4 -4 -4 -3 -3 ------- Run | Yrd Mat Sub Scr Fac Was Fac Fac Upp Upp Res Qua Maximum Alert Level 2 | . . . . . . 2 1 . . . . Low Security (%) 61 | 100 100 . . 100 100 27 29 . . 100 100 Level 1 22 | . . . . . . 39 70 . . . . Level 2 15 | . . . . . . 33 . . . . . Level 3 . | . . . . . . . . . . . . Level 4 . | . . . . . . . . . . . . Level 5 . | . . . . . . . . . . . . High Security . | . . . . . . . . . . . . Max Security . | . . . . . . . . . . . . Peak Influence 540 | . . . . 80 23 540 252 . . 50 38 Initial 252 | . . . . . 23 . 252 . . . 22 Average 156 | . . . . 31 4 293 213 . . 5 8 Influence Increases 1919 | . . . . 451 . 1079 36 100 132 60 61 Destroy 0b10 Robot/C 960 | . . . . 280 . 500 . 80 100 . . Destroy 0b10 Robot/NC 65 | . . . . 10 . 50 5 . . . . Destroy Leader 182 | . . . . 52 . 108 2 20 . . . Allied During Kill 25 | . . . . 23 . . . . 2 . . Successful Hack 117 | . . . . 24 . 50 27 . . . 16 Disable Machine 300 | . . . . . . 255 . . . . 45 Destroy Structure 150 | . . . . 62 . 86 2 . . . . Partial Spotted 15 | . . . . . . . . . . 15 . Lose Combat Pursuer 105 | . . . . . . 30 . . 30 45 . Influence Decreases 1919 | . . . . 383 68 562 385 268 132 20 101 Entered New Map 391 | . . . . . 45 . 265 63 . . 18 Time Decay 1233 | . . . . 323 23 472 120 135 72 20 68 Lost Part 220 | . . . . 20 . 80 . 70 40 . 10 Lost Ally 75 | . . . . 40 . 10 . . 20 . 5 Squads Dispatched 12 | . 1 . . 2 . 6 . . 1 1 1 Investigation 2 | . 1 . . . . 1 . . . . . Extermination 7 | . . . . 1 . 4 . . . 1 1 Reinforcement 1 | . . . . 1 . . . . . . . Assault 2 | . . . . . . 1 . . 1 . . Garrison . | . . . . . . . . . . . . Intercept . | . . . . . . . . . . . . Searches Triggered . | . . . . . . . . . . . . Construction Impeded . | . . . . . . . . . . . . Haulers Reinforced . | . . . . . . . . . . . . Active Scanning Responses . | . . . . . . . . . . . . Cargo Convoy Interrupts . | . . . . . . . . . . . . Stealth | -11 -10 -10 -7 -5 -5 -5 -4 -4 -4 -3 -3 --------- Run | Yrd Mat Sub Scr Fac Was Fac Fac Upp Upp Res Qua Distress Signals 1 | . . . . . . . . . . 1 . Communications Jammed 3 | . . . . 3 . . . . . . . Distress Signals 3 | . . . . 3 . . . . . . . Times Spotted 104 | . . 7 . 15 6 39 3 4 8 8 14 Peak Tracking Total 12 | . . 3 . 3 6 5 1 2 5 8 12 Tactical Retreats 5 | . . . . . . 2 . . 2 1 . Traps | -11 -10 -10 -7 -5 -5 -5 -4 -4 -4 -3 -3 ------- Run | Yrd Mat Sub Scr Fac Was Fac Fac Upp Upp Res Qua Traps Triggered 11 | . 1 . . 2 . 6 2 . . . . Indirectly . | . . . . . . . . . . . . Trap Hack Attempts . | . . . . . . . . . . . . Triggered . | . . . . . . . . . . . . Disarmed . | . . . . . . . . . . . . Reprogrammed . | . . . . . . . . . . . . Reused . | . . . . . . . . . . . . Traps Extracted . | . . . . . . . . . . . . Installed . | . . . . . . . . . . . . Triggered . | . . . . . . . . . . . . Machines | -11 -10 -10 -7 -5 -5 -5 -4 -4 -4 -3 -3 ---------- Run | Yrd Mat Sub Scr Fac Was Fac Fac Upp Upp Res Qua Machines Disabled 21 | . . 1 . . . 17 . . . . 3 Max in Single Turn 8 | . . 1 . . . 8 . . . . 1 Machines Repaired . | . . . . . . . . . . . . Machines Dismantled . | . . . . . . . . . . . . Machines Sabotaged . | . . . . . . . . . . . . Overloaded Fab Kills . | . . . . . . . . . . . . Hacking | -11 -10 -10 -7 -5 -5 -5 -4 -4 -4 -3 -3 --------- Run | Yrd Mat Sub Scr Fac Was Fac Fac Upp Upp Res Qua Machines Accessed 27 | . 1 2 4 5 . 8 1 . . 1 5 Terminals 15 | . 1 . . 2 . 6 1 . . 1 4 Fabricators 3 | . . . . 2 . 1 . . . . . Repair Stations 1 | . . . . . . 1 . . . . . Recycling Units 1 | . . . . 1 . . . . . . . Scanalyzers 1 | . . . . . . . . . . . 1 Garrison Access . | . . . . . . . . . . . . Total Hacks 78 | . 1 5 25 16 . 16 3 . . 2 10 Successful 45 | . . 5 25 8 . 3 1 . . . 3 Failed 33 | . 1 . . 8 . 13 2 . . 2 7 Catastrophic 4 | . 1 . . 1 . 2 . . . . . Database Lockouts . | . . . . . . . . . . . . Manual 26 | . 6 . . 11 . 6 . . . 2 1 Terminals 32 | . 1 . . 6 . 12 3 . . 2 8 Fabricators 9 | . . . . 8 . 1 . . . . . Repair Stations 3 | . . . . . . 3 . . . . . Recycling Units 2 | . . . . 2 . . . . . . . Scanalyzers 2 | . . . . . . . . . . . 2 Garrison Access . | . . . . . . . . . . . . Terminal Hacks 35 | . . 5 25 2 . . 1 . . . 2 Record 28 | . . 4 24 . . . . . . . . Branch Access Points 1 | . . . . . . . 1 . . . . Emergency Access Points 1 | . . . . . . . . . . . 1 Alert Level 1 | . . . . . . . . . . . 1 Zone Layout 2 | . . . . 2 . . . . . . . Proto ID Catalog 2 | . . 1 1 . . . . . . . . Fabricator Hacks 1 | . . . . 1 . . . . . . . Network Status 1 | . . . . 1 . . . . . . . Repair Station Hacks 1 | . . . . . . 1 . . . . . Scan Component 1 | . . . . . . 1 . . . . . Recycling Unit Hacks 1 | . . . . 1 . . . . . . . Report Inventory 1 | . . . . 1 . . . . . . . Scanalyzer . | . . . . . . . . . . . . Garrison Access Hacks . | . . . . . . . . . . . . Unauthorized Hacks 7 | . . . . 4 . 2 . . . . 1 Terminals 5 | . . . . 2 . 2 . . . . 1 Assimilate 2 | . . . . . . 1 . . . . 1 Botnet 2 | . . . . 1 . 1 . . . . . Operators 1 | . . . . 1 . . . . . . . Fabricators 2 | . . . . 2 . . . . . . . Liberate 1 | . . . . 1 . . . . . . . Fabnet 1 | . . . . 1 . . . . . . . Repair Stations . | . . . . . . . . . . . . Recycling Units . | . . . . . . . . . . . . Scanalyzers . | . . . . . . . . . . . . Garrison Access . | . . . . . . . . . . . . Data Cores Recovered . | . . . . . . . . . . . . Used . | . . . . . . . . . . . . Hacking Detections 21 | . 1 . . 5 . 8 1 . . 1 5 Full Trace Events 1 | . . . . . . 1 . . . . . Feedback Events . | . . . . . . . . . . . . Feedback Blocked . | . . . . . . . . . . . . Robot Schematics Acquired . | . . . . . . . . . . . . Robots Built . | . . . . . . . . . . . . Authchips . | . . . . . . . . . . . . Time . | . . . . . . . . . . . . Total Robot Build Rating . | . . . . . . . . . . . . Part Schematics Acquired . | . . . . . . . . . . . . Parts Built . | . . . . . . . . . . . . Authchips . | . . . . . . . . . . . . Time . | . . . . . . . . . . . . Total Part Build Rating . | . . . . . . . . . . . . Part Studies Acquired . | . . . . . . . . . . . . Parts Repaired . | . . . . . . . . . . . . Time . | . . . . . . . . . . . . Parts Recycled . | . . . . . . . . . . . . Recycled Matter . | . . . . . . . . . . . . Retrieved Matter . | . . . . . . . . . . . . Retrieved Components . | . . . . . . . . . . . . Parts Scanalyzed . | . . . . . . . . . . . . Part Schematics Acquired . | . . . . . . . . . . . . Parts Damaged . | . . . . . . . . . . . . Bothacking | -11 -10 -10 -7 -5 -5 -5 -4 -4 -4 -3 -3 ------------ Run | Yrd Mat Sub Scr Fac Was Fac Fac Upp Upp Res Qua Used RIF Installer . | . . . . . . . . . . . . Robots Hacked 1 | . . . . . . . 1 . . . . Non-combat . | . . . . . . . . . . . . Combat 1 | . . . . . . . 1 . . . . Robot Hacks Applied . | . . . . . . . . . . . . Relay Couplers Released . | . . . . . . . . . . . . Fabnet Peak Effective % 3 | . . . . . . . 3 3 3 1 1 Autooverrided 1 | . . . . . . . 1 . . . . Robots Rewired 1 | . . . . . . . . . 1 . . Allies Hacked . | . . . . . . . . . . . . Hacks Repelled . | . . . . . . . . . . . . Allies | -11 -10 -10 -7 -5 -5 -5 -4 -4 -4 -3 -3 -------- Run | Yrd Mat Sub Scr Fac Was Fac Fac Upp Upp Res Qua Total Allies 5 | . . . 1 . . 1 1 . 1 . 1 Largest Group 1 | . . . 1 1 . 1 1 . 1 . 1 Highest-Rated Group 67 | . . . 67 67 . 26 49 . 47 . 26 Highest-Rated Ally 67 | . . . 67 67 . 26 49 . 47 . 26 Initial UFD Resources 44 | . . . . 39 39 39 42 42 42 44 44 Total Orders 2 | . . . . 2 . . . . . . . EXPLORE 2 | . . . . 2 . . . . . . . Ally Attacks 28 | . . . . 21 . . . . 7 . . Total Damage 875 | . . . . 645 . . . . 230 . . Kills 7 | . . . . 5 . . . . 2 . . Allies Corrupted 1 | . . . . 1 . . . . . . . Allies Melted 1 | . . . . . . . . . 1 . . Intel | -11 -10 -10 -7 -5 -5 -5 -4 -4 -4 -3 -3 ------- Run | Yrd Mat Sub Scr Fac Was Fac Fac Upp Upp Res Qua Active Infowar (turns) 1183 | . . . . 563 152 400 . 24 41 3 . Optics 996 | . . . . 444 152 400 . . . . . Sensors 65 | . . . . . . . . 24 41 . . Jamming 119 | . . . . 119 . . . . . . . ECM 3 | . . . . . . . . . . 3 . Robot Analysis Total . | . . . . . . . . . . . . Derelict Logs Recovered 2 | . . 1 . . . . . . 1 . . Drone Launches 4 | . . . . 4 . . . . . . . Drone Recoveries 1 | . . . . 1 . . . . . . . Exploration | -11 -10 -10 -7 -5 -5 -5 -4 -4 -4 -3 -3 ------------- Run | Yrd Mat Sub Scr Fac Was Fac Fac Upp Upp Res Qua Turns Passed 8210 | 122 362 686 2502 846 152 1916 254 421 455 194 300 Spaces Moved 5476 | 77 81 431 1986 527 111 1207 193 295 145 176 247 Core 341 | 10 . . . . . . . . 135 176 20 Treads 407 | 67 8 332 . . . . . . . . . Legs . | . . . . . . . . . . . . Wheels 2919 | . . 78 527 498 111 1207 193 295 10 . . Hover 1648 | . 73 21 1298 29 . . . . . . 227 Flight 161 | . . . 161 . . . . . . . . Fastest Speed 50 | 50 56 56 56 115 130 115 100 115 50 50 50 Average Speed 121 | 145 78 144 120 132 130 123 115 115 107 93 106 Slowest Speed 300 | 160 160 160 192 211 145 145 130 115 250 300 221 Overloaded Moves . | . . . . . . . . . . . . Propulsion Burnouts . | . . . . . . . . . . . . Robots Hopped . | . . . . . . . . . . . . Potential Cave-ins 9 | . . . . . . . . . . . 9 Cave-ins Triggered 1 | . . . . . . . . . . . 1 Exploration Rate (%) 30 | 4 20 31 87 23 77 32 5 42 14 6 30 Regions Visited 11 Branch Regions 5 Pre-discovered Areas 5 | . . 1 3 . . . . . 1 . . Known Exits Taken 4 | . . . 1 . . 1 1 . . 1 . Unknown Exits Taken 5 | 1 1 1 . . . . . 1 1 . . Scrap Searched 16 | . . 2 12 . . . . 2 . . . Spaces Dug 3 | . . . . 2 . 1 . . . . . Terrain Destroyed 92 | . . . . 22 . 43 1 13 12 1 . Melee . | . . . . . . . . . . . . Projectile 63 | . . . . 22 . 21 1 13 5 1 . AOE 29 | . . . . . . 22 . . 7 . . Terrain Rammed . | . . . . . . . . . . . . Walls Destroyed . | . . . . . . . . . . . . Machines Disabled . | . . . . . . . . . . . . Actions | -11 -10 -10 -7 -5 -5 -5 -4 -4 -4 -3 -3 --------- Run | Yrd Mat Sub Scr Fac Was Fac Fac Upp Upp Res Qua Total 6704 | 84 378 471 2111 617 118 1489 219 335 414 193 275 Wait 797 | . 286 1 85 24 6 141 6 5 237 2 4 Move 5465 | 76 80 430 1985 527 110 1206 192 294 144 175 246 Hop . | . . . . . . . . . . . . Pick Up 52 | 2 4 4 20 8 . 6 4 2 . 1 1 Fast Attach 69 | 5 4 3 . 11 1 17 7 3 1 3 14 Attach 24 | 1 . 2 . 5 . 4 4 2 . 3 3 Detach 19 | . 3 . . 1 . 6 3 3 . . 3 Swap 10 | . . 2 4 1 . 3 . . . . . Drop 48 | . 1 8 17 6 1 13 1 1 . . . Fire 182 | . . 15 . 34 . 68 2 25 26 9 3 Melee . | . . . . . . . . . . . . Ram . | . . . . . . . . . . . . Kick . | . . . . . . . . . . . . Crush . | . . . . . . . . . . . . Escape Stasis 26 | . . . . . . 25 . . . . 1 Rewire 6 | . . . . . . . . . 6 . . Trap . | . . . . . . . . . . . . Miscellaneous 6 | . . 6 . . . . . . . . . Route ------- -11/Scrapyard -10/Materials -10/Subcaves -7/Scraptown (discovered 2 exits: *Fac x2) -5/Factory (discovered 5 exits: Fac x3 / *Upp x2) -5/Waste -5/Factory (discovered 2 exits: *Fac / Upp) -4/Factory (discovered 2 exits: *Upp x2) -4/Upper Caves -4/Upper Caves -3/Research (discovered 4 exits: Res x2 / Arm / *Qua) -3/Quarantine History --------- Turn | Location | Event 5 | -11/Scrapyard | Discovered new exit (range 15) 123 | -11/Scrapyard | Entered Materials 304 | -10/Materials | Build established: Mutant 481 | -10/Materials | Discovered new exit (range 5) 485 | -10/Materials | Entered Subcaves 486 | -10/Subcaves | Approached by a straggling Scientist 574 | -10/Subcaves | Learned Materials emergency access door positions 703 | -10/Subcaves | Scientist uncovered a shortcut to Scraptown 794 | -10/Subcaves | Visited Clippyterm 798 | -10/Subcaves | Learned location of Section 7 (-2) 798 | -10/Subcaves | Learned Factory fabricator intel 1015 | -10/Subcaves | Visited 4L-MR0's lab 1030 | -10/Subcaves | Found Prototype Device 1030 | -10/Subcaves | Identified Sfc. Transmogrifier 1044 | -10/Subcaves | Found Powered Cannon 1046 | -10/Subcaves | Attached Powered Cannon, gained temporary slot: Power 1171 | -10/Subcaves | Entered Scraptown 1279 | -7/Scraptown | Heard Great Nut preacher, LISTEN AND RECITE! 1314 | -7/Scraptown | Visited IN-MT5's Study 1338 | -7/Scraptown | Visited SPCMW 1380 | -7/Scraptown | Visited Assassins FH 1394 | -7/Scraptown | Visited Cave Peace 1417 | -7/Scraptown | Visited Bundlers 1498 | -7/Scraptown | Visited UFD Registry 1498 | -7/Scraptown | Registered with UFD as "Bladespreader" 1519 | -7/Scraptown | Visited Junk Repository 1546 | -7/Scraptown | Visited Science Guys 1579 | -7/Scraptown | Visited Scrap Suit Storage 1597 | -7/Scraptown | Visited Abandonware Association 1612 | -7/Scraptown | Learned abandonware demo "REBOOT5.EXE" 1612 | -7/Scraptown | Learned abandonware demo "ERRANTS.EXE" 1635 | -7/Scraptown | Visited Supply Room 1651 | -7/Scraptown | Visited Junk Repository 1674 | -7/Scraptown | Visited Botcube Research 1705 | -7/Scraptown | Visited DA-N13 Charitable Foundation 1712 | -7/Scraptown | Found DCF Scrap (30 items) 1762 | -7/Scraptown | Visited Observation Area 1793 | -7/Scraptown | Visited Cartography Club 2085 | -7/Scraptown | Learned location of Lower Caves (-6) 2085 | -7/Scraptown | Learned location of Extension (-6) 2085 | -7/Scraptown | Learned 20 Factory zone layouts 2085 | -7/Scraptown | Learned 8 Research zone layouts 2085 | -7/Scraptown | Learned 16 Research zone layouts 2085 | -7/Scraptown | Learned 4 Storage zone layouts 2085 | -7/Scraptown | Learned 4 Recycling zone layouts 2085 | -7/Scraptown | Learned 16 Lower Caves zone layouts 2085 | -7/Scraptown | Learned 24 Proximity Caves zone layouts 2085 | -7/Scraptown | Learned 4 Armory zone layouts 2085 | -7/Scraptown | Learned Research emergency access door positions 2085 | -7/Scraptown | Learned location of 2 exits from Research 2085 | -7/Scraptown | Learned location of 2 exits from Lower Caves 2085 | -7/Scraptown | Learned location of 1 exit from Proximity Caves 2085 | -7/Scraptown | Identified exit to Factory 2136 | -7/Scraptown | Found Botcube 2321 | -7/Scraptown | Delivered Scrap Shield to a Scientist 3336 | -7/Scraptown | Botcube activated 3356 | -7/Scraptown | Botcube completed mutation into wheeled form, armed with 2 cannons. 3582 | -7/Scraptown | Met Optimus 3582 | -7/Scraptown | Accepted into 0bPrime 3673 | -7/Scraptown | Entered Factory 3673 | -5/Factory | Accompanied by 1 ally 3673 | -5/Factory | Evolved 10 slots: Power x2, Propulsion x2, Utility x3, Weapon x3 3674 | -5/Factory | Identified exit to Factory 3674 | -5/Factory | Identified exit to Upper Caves 3676 | -5/Factory | Loaded intel: 6 fabricator locations 3972 | -5/Factory | Build established: Tank 4519 | -5/Factory | Sucked down chute 4519 | -5/Factory | Entered Waste 4534 | -5/Waste | EMP discharged 4535 | -5/Waste | Spotted C-40 Crusher 4571 | -5/Waste | Spotted C-40 Crusher 4574 | -5/Waste | Spotted C-40 Crusher 4586 | -5/Waste | Spotted C-40 Crusher 4593 | -5/Waste | Spotted C-40 Crusher 4618 | -5/Waste | Crushed by Compactor (0 parts destroyed, 1 dropped) 4634 | -5/Waste | EMP discharged 4634 | -5/Waste | System corruption reached 10% 4644 | -5/Waste | Discovered new exit (range 22) 4653 | -5/Waste | Spotted C-40 Crusher 4671 | -5/Waste | Entered Factory 5935 | -5/Factory | Lost 3 parts (1p1u1w) 6321 | -5/Factory | Discovered exit to Factory (range 11) 6380 | -5/Factory | Build established: Gunner 6471 | -5/Factory | First assault squad dispatched 6587 | -5/Factory | Entered another Factory area 6587 | -4/Factory | Evolved 2 slots: Utility x2 6691 | -4/Factory | Identified exit to Upper Caves 6836 | -4/Factory | Local machine network offline 6841 | -4/Factory | Entered Upper Caves 6843 | -4/Upper Caves | UFD Scientist delivered a prototype 6890 | -4/Upper Caves | Found Prototype Protection 6890 | -4/Upper Caves | Identified Enh. Scrap Shield 7000 | -4/Upper Caves | Lost 7 parts (2p1n1u3w) 7239 | -4/Upper Caves | Discovered new exit (range 9) 7262 | -4/Upper Caves | Entered another Upper Caves area 7271 | -4/Upper Caves | Attracted the attention of an 0b10 outpost 7331 | -4/Upper Caves | System corruption reached 10% 7335 | -4/Upper Caves | Core integrity fell below 50% 7343 | -4/Upper Caves | Learned location of Testing (-2) 7346 | -4/Upper Caves | Attracted the attention of an 0b10 checkpoint 7371 | -4/Upper Caves | Lost 10 parts (1p1n4u4w) 7603 | -4/Upper Caves | Build established: Mutant 7700 | -4/Upper Caves | Discovered new exit (range 5) 7717 | -4/Upper Caves | Entered Research 7717 | -3/Research | Evolved 2 slots: Utility x2 7718 | -3/Research | Identified exit to Quarantine 7718 | -3/Research | Identified exit to Research 7719 | -3/Research | Identified exit to Armory 7838 | -3/Research | Lost 4 parts (3u1w) 7852 | -3/Research | Core integrity fell below 50% 7874 | -3/Research | Lost 3 parts (2u1w) 7883 | -3/Research | Core integrity fell below 20% 7911 | -3/Research | Entered Quarantine 7975 | -3/Quarantine | Found Alien Reactor 7975 | -3/Quarantine | Identified Matter Drive 8071 | -3/Quarantine | Found Alien Artifact 8071 | -3/Quarantine | Identified Phase Armor 8179 | -3/Quarantine | Crushed by falling debris 8211 | -3/Quarantine | Destroyed by P-80 Master with Gamma Rifle Last Messages --------------- >>Alert(Check) Current Alert Level: Low Security 08192_ Terminal disabled. 08193_ Sfc. Transmogrifier converts Phase Armor into Exp. Weapon Cycler (x2). 08194_ Hvy. Disruptor Cannon destroyed. 08200_ Reaction Chamber disabled. 08202_ Acquired Prototype Ballistic Cannon. 08202_ Identified Lgt. Antimatter Cannon. 08203_ The unstable cave ceiling collapses. 08203_ G-67 Veteran crushed by falling debris. 08206_ Discarded Rnf. Quantum Reactor. 08207_ System corrupted: Matter fused (-6). 08210_ Connecting with Terminal... >>Access(Emergency) Found 2 emergency access doors: (58,46) (44,56) Map updated. 08211_ Antigrav System destroyed. Map ----- +----------------------------------------------------+ | ??## ##?????????????????????????????????????????? | | ###""""#?????????????????????????????????????????? | | # ##????????????????????????????????????????? | | # "######???????????????????????????????????? | | # "" " ##???#########??????????????????????? | | # "" "# ##??# ?????????????????????? | | # """" " #??# ????????????????????? | | # "]"" "## # #??# """ ""? ???????????????????? | | # """" #####" ###?# """ """ ??? ??????????????? | | # # ###"" """ """ # ???????????????? | | # # """ " #"" + ????????????????? | | # # """ " # """ """ #?????????????????? | | + # " " #T "" """ +?????????????????? | | # # ###"" "" """ #?????????????????? | | # # """ #?#"" #?????????????????? | | ######## """ #?#"" #?????????????????? | | ?????+ """ #?# #?????????????????? | | ???# #?######+#######?????????????????? | | / ??+ """ #??# #??????????????????????? | | %! ???? """ #??#""" ! #??????????????????????? | | ###+###?????"" #??#"R #??????????????????????? | | #??? ???????? !#??#""" #??????????????????????? | | #???? ???????" #??# "" #??????????????????????? | | #????????????" ???# #??????????????????????? | | #????????????" ???####+###??????????????????????? | | #????????????? ????# @#??????????????????????? | | #????????????? ????# T" ?????????????????? | | #?????????+?????????# " ##????????????????? | | #???????????????????# #?????????????????? | | #???????????????????# ######?????????????????? | | #???????????????????### ###??????????????????????? | | #?????????????????????# #????????????????????????? | | #?????????????????????# #????????????????????????? | | #????????????????????? ????????????????????????? | | #?????????????????????p #????????????????????????? | | ??????????????????????p ?????????????????????????? | | ????????????????????? ?????????????????????????? | | ?????????????????????##??????????????????????????? | | ?????????????????????????????????????????????????? | | ?????????????????????????????????????????????????? | | ?????????????????????????????????????????????????? | | ####?????????????????????????????????????????????? | | #?????????????????????????????????????????????? | | #?????????????????????????????????????????????? | | #?????????????????????????????????????????????? | | " #?????????????????????????????????????????????? | | "" #?????????????????????????????????????????????? | | #?????????????????????????????????????????????? | | " #?????????????????????????????????????????????? | | "" #?????????????????????????????????????????????? | +----------------------------------------------------+ Best States ------------- Heat Dissipation 88 Coolant Potential 100 Energy Generation 39 Energy Capacity 1100 Matter Stores 300 Matter Capacity 600 Sight Range 22 Robot Scan Range 18 Terrain Scan Density 210 Jamming Range 12 Additional Mass Support 9 Armor Coverage 800 Resistance: KI 25 Resistance: TH 30 Core Shielding 10 Weapon Shielding 90 Weapon Cycling 30 Evasion (%) 61 Target Analysis 8 Core Analysis 6 Recoil Reduction 4 Salvage Targeting 4 Offensive Hacking 16 Defensive Hacking 10 Item Schematics ----------------- None Robot Schematics ------------------ None Fabricated ------------ Nothing Repaired ---------- Nothing Studied --------- None Alien Tech Used ----------------- Matter Drive Phase Armor Achievements -------------- None Challenges ------------ None Game ------ Seed BeamProjectileMonowheel Manual? 0 Play Time 01:25:38 Cumulative 120.1 hours Start 2026.06.27 @ 19:58:01 End 2026.06.27 @ 22:45:47 Sessions 3 Manual Loads 0 Difficulty Rogue Special Mode None Game No. 73 Rogue 73 Adventurer 0 Explorer 0 Win Type - Total 1 Types 1/0/0/0/0/0/0/0/0/0 Lore% 61 Gallery% 53 Achievement% 46 Wizard Run 0 Options --------- Layout 1 ASCII 0 Keyboard 0 Movement Numpad Keybinds 0 Fullscreen 1 Font 24/Smallcaps Map View 50x35 Zoom Use 0% Tactical HUD 1 Map Filters NONE Filters NONE Steam 1 RUN: 45ffaad5-1f14-4762-b9c4-e82b79cf33db